[Event "13th Senioren-Cup Tegernsee 2025"]
[Site "Rottach-Egern"]
[Date "2025.03.29"]
[Round "1.1"]
[White "Schneider-Zinner, Harald"]
[Black "Steiger, Michael"]
[Result "1-0"]
[Annotator "RC"]
[ECO "D02"]
[WhiteElo "2327"]
[BlackElo "1916"]
[PlyCount "77"]
[EventDate "2025.03.25"]
[EventType "swiss"]
[EventCountry "GER"]
[SourceTitle "playchess.com"]
[Source "ChessBase"]
[SourceQuality "1"]
[TimeControl "9000+30"]

1. d4 {[%emt 0:20:07]} Nf6 {[%emt 0:20:35]} 2. Nf3 {[%emt 0:00:15]} g6 {[%emt 0:01:17]} 3. Nbd2 {[%emt 0:00:50]} d5 {[%emt 0:01:46]} 4. b4 {[%emt 0:00:16]} Bg7 {[%emt 0:02:04]} 5. e3 {[%emt 0:02:06]} O-O {[%emt 0:04:55]} 6. Bb2 {[%emt 0:00:13]} a5 {[%emt 0:05:15]} 7. b5 {[%emt 0:00:07]} c6 {[%emt 0:02:11]} 8. a4 {[%emt 0:01:30]} Nbd7 {[%emt 0:08:35]} 9. c4 {[%emt 0:03:07]} c5 {[%emt 0:07:23]} 10. Qb3 {[%emt 0:13:40]} e6 {[%emt 0:10:30]} 11. Be2 {[%emt 0:15:48]} b6 {[%emt 0:03:03]} 12. O-O {[%emt 0:08:06]} Bb7 {[%emt 0:02:04]} 13. Rac1 {[%emt 0:00:28]} Rc8 {[%emt 0:12:22]} 14. Qa2 {[%emt 0:02:31]} Ne4 {[%emt 0:08:44]} 15. Rfd1 {[%emt 0:05:33]} Qc7 {[%emt 0:18:50]} 16. Qb1 {[%emt 0:20:09]} Nxd2 {[%emt 0:15:12]} 17. Rxd2 {[%emt 0:04:29]} Rfd8 {[%emt 0:00:56]} 18. cxd5 {[%emt 0:15:16]} Bxd5 {[%emt 0:02:33]} 19. e4 {[%emt 0:08:03]} Bb7 {[%emt 0:02:51]} 20. d5 {[%emt 0:03:03]} exd5 {[%emt 0:02:08]} 21. exd5 {[%emt 0:03:32]} Bh6 {[%emt 0:09:22]} 22. d6 {[%emt 0:32:21]} Qb8 {[%emt 0:00:23]} 23. Rdd1 {[%emt 0:00:00]} c4 {[%emt 0:02:06]} 24. Rxc4 {[%emt 0:00:00]} Rxc4 {[%emt 0:02:50]} 25. Bxc4 {[%emt 0:00:00]} Bxf3 {[%emt 0:00:52]} 26. gxf3 {[%emt 0:00:00]} Nc5 {[%emt 0:01:56]} 27. Be5 {[%emt 0:00:00]} Rd7 {[%emt 0:00:45]} 28. Qc2 {[%emt 0:00:00]} Qd8 {[%emt 0:01:40]} 29. Bd5 {[%emt 0:00:00]} Bf8 {[%emt 0:01:55]} 30. Qd2 {[%emt 0:00:00]} Qh4 {[%emt 0:04:00]} 31. Bc6 {[%emt 0:00:00]} Rd8 {[%emt 0:00:52]} 32. Qf4 {[%emt 0:00:07]} Qxf4 {[%emt 0:00:49]} 33. Bxf4 {[%emt 0:00:02]} Nxa4 {[%emt 0:00:48]} 34. d7 {[%emt 0:00:22]} Nc5 {[%emt 0:03:36]} 35. Bg5 {[%emt 0:01:08]} Ne6 {[%emt 0:00:21]} 36. Bxd8 {[%emt 0:00:09]} Nxd8 {[%emt 0:00:01]} 37. Re1 {[%emt 0:00:16]} a4 {[%emt 0:00:19]} 38. Re8 {[%emt 0:00:36]} Ne6 {[%emt 0:00:10]} 39. Rxe6 {[%emt 0:00:29]} 1-0

[Event "13th Senioren-Cup Tegernsee 2025"]
[Site "Rottach-Egern"]
[Date "2025.03.29"]
[Round "1.2"]
[White "Miller, Klaus"]
[Black "Heinbuch, Detlef Ulrich"]
[Result "0-1"]
[Annotator "ChessBase"]
[ECO "B22"]
[WhiteElo "1911"]
[BlackElo "2263"]
[PlyCount "66"]
[EventDate "2025.03.25"]
[EventType "swiss"]
[EventCountry "GER"]
[SourceTitle "playchess.com"]
[Source "ChessBase"]
[SourceQuality "1"]
[TimeControl "9000+30"]

1. e4 {[%emt 0:20:07]} c5 {[%emt 0:20:45]} 2. c3 {[%emt 0:00:19]} g6 {[%emt 0:00:14]} 3. d4 {[%emt 0:00:23]} cxd4 {[%emt 0:00:13]} 4. cxd4 {[%emt 0:00:07]} d5 {[%emt 0:00:16]} 5. e5 {[%emt 0:01:29]} Nc6 {[%emt 0:00:42]} 6. Nc3 {[%emt 0:03:53]} Bg7 {[%emt 0:01:14]} 7. h3 {[%emt 0:03:31]} Nh6 {[%emt 0:11:48]} 8. Nf3 {[%emt 0:04:19]} O-O {[%emt 0:01:44]} 9. Qb3 {[%emt 0:02:08]} Nf5 {[%emt 0:04:02]} 10. Be3 {[%emt 0:07:34]} Nxe3 {[%emt 0:06:29]} 11. fxe3 {[%emt 0:00:03]} e6 {[%emt 0:00:14]} 12. O-O-O {[%emt 0:10:51]} Bh6 {[%emt 0:07:39]} 13. Re1 {[%emt 0:03:09]} Bd7 {[%emt 0:16:39]} 14. Kb1 {[%emt 0:05:54]} Na5 {[%emt 0:08:36]} 15. Qc2 {[%emt 0:12:53]} Rc8 {[%emt 0:01:15]} 16. g4 {[%emt 0:05:08]} Nc4 {[%emt 0:16:50]} 17. Bxc4 {[%emt 1:17:12]} Rxc4 {[%emt 0:00:25]} 18. h4 {[%emt 0:00:00]} Qe7 {[%emt 0:07:57]} 19. g5 {[%emt 0:00:00]} Bg7 {[%emt 0:00:07]} 20. h5 {[%emt 0:00:00]} Rfc8 {[%emt 0:02:37]} 21. hxg6 {[%emt 0:00:00]} hxg6 {[%emt 0:02:47]} 22. Nd2 {[%emt 0:00:00]} Rxc3 {[%emt 0:04:14]} 23. bxc3 {[%emt 0:00:00]} Qxg5 {[%emt 0:00:31]} 24. Rh3 {[%emt 0:00:00]} Ba4 {[%emt 0:03:21]} 25. Qxa4 {[%emt 0:00:00]} Qf5+ {[%emt 0:00:06]} 26. Kb2 {[%emt 0:00:00]} Qxh3 {[%emt 0:00:05]} 27. Qd7 {[%emt 0:00:00]} Rf8 {[%emt 0:01:07]} 28. Qxb7 {[%emt 0:00:00]} Bh6 {[%emt 0:01:34]} 29. Nf1 {[%emt 0:00:00]} Qg2+ {[%emt 0:01:30]} 30. Kb3 {[%emt 0:00:00]} a5 {[%emt 0:06:34]} 31. a3 {[%emt 0:00:00]} a4+ {[%emt 0:01:12]} 32. Kxa4 {[%emt 0:00:00]} Qc2+ {[%emt 0:00:14]} 33. Kb5 {[%emt 0:00:00]} Qb3+ {[%emt 0:03:36]} 0-1

[Event "13th Senioren-Cup Tegernsee 2025"]
[Site "Rottach-Egern"]
[Date "2025.03.29"]
[Round "1.3"]
[White "Belke, Frank"]
[Black "Wagner, Bernd"]
[Result "1-0"]
[Annotator "ChessBase"]
[ECO "B38"]
[WhiteElo "2235"]
[BlackElo "2069"]
[PlyCount "53"]
[EventDate "2025.03.25"]
[EventType "swiss"]
[EventCountry "GER"]
[SourceTitle "playchess.com"]
[Source "ChessBase"]
[SourceQuality "1"]
[TimeControl "9000+30"]

1. d4 {[%emt 0:20:03]} Nf6 {[%emt 0:20:11]} 2. c4 {[%emt 0:00:05]} c5 {[%emt 0:00:20]} 3. Nf3 {[%emt 0:00:06]} g6 {[%emt 0:00:05]} 4. Nc3 {[%emt 0:00:13]} cxd4 {[%emt 0:00:59]} 5. Nxd4 {[%emt 0:00:03]} Bg7 {[%emt 0:00:07]} 6. e4 {[%emt 0:00:04]} d6 {[%emt 0:00:05]} 7. Be2 {[%emt 0:00:10]} O-O {[%emt 0:00:25]} 8. O-O {[%emt 0:00:20]} Nc6 {[%emt 0:02:19]} 9. Be3 {[%emt 0:00:11]} Nxd4 {[%emt 0:01:30]} 10. Bxd4 {[%emt 0:00:02]} b6 {[%emt 0:01:00]} 11. f4 {[%emt 0:01:53]} e6 {[%emt 0:05:50]} 12. Bf3 {[%emt 0:01:27]} Bb7 {[%emt 0:01:31]} 13. Qd2 {[%emt 0:01:53]} Qe7 {[%emt 0:01:44]} 14. Rad1 {[%emt 0:04:06]} Rfd8 {[%emt 0:06:49]} 15. Bf2 {[%emt 0:06:51]} Rac8 {[%emt 0:04:00]} 16. b3 {[%emt 0:00:39]} Bc6 {[%emt 0:13:26]} 17. Rfe1 {[%emt 0:06:01]} Qb7 {[%emt 0:01:35]} 18. Bh4 {[%emt 0:04:23]} Rd7 {[%emt 0:05:26]} 19. Nd5 {[%emt 0:02:11]} exd5 {[%emt 0:29:54]} 20. exd5 {[%emt 0:00:10]} Nxd5 {[%emt 0:00:32]} 21. Bxd5 {[%emt 0:00:23]} Bxd5 {[%emt 0:00:09]} 22. Qxd5 {[%emt 0:00:02]} Qxd5 {[%emt 0:02:28]} 23. Rxd5 {[%emt 0:00:02]} Rc5 {[%emt 0:05:51]} 24. Re8+ {[%emt 0:02:08]} Bf8 {[%emt 0:01:02]} 25. Bf6 {[%emt 0:00:06]} Rxd5 {[%emt 0:03:25]} 26. cxd5 {[%emt 0:00:01]} h6 {[%emt 0:00:55]} 27. Rc8 {[%emt 0:00:39]} 1-0

[Event "13th Senioren-Cup Tegernsee 2025"]
[Site "Rottach-Egern"]
[Date "2025.03.29"]
[Round "1.4"]
[White "Zoll, Detlef"]
[Black "Pieper, Thomas"]
[Result "0-1"]
[Annotator "RC"]
[ECO "E81"]
[WhiteElo "1907"]
[BlackElo "2178"]
[PlyCount "100"]
[EventDate "2025.03.25"]
[EventType "swiss"]
[EventCountry "GER"]
[SourceTitle "playchess.com"]
[Source "ChessBase"]
[SourceQuality "1"]
[TimeControl "9000+30"]

1. d4 {[%emt 0:20:10]} Nf6 {[%emt 0:20:06]} 2. c4 {[%emt 0:00:26]} g6 {[%emt 0:00:15]} 3. Nc3 {[%emt 0:00:23]} Bg7 {[%emt 0:00:08]} 4. e4 {[%emt 0:00:34]} d6 {[%emt 0:00:06]} 5. f3 {[%emt 0:00:36]} O-O {[%emt 0:00:18]} 6. Be3 {[%emt 0:00:22]} c5 {[%emt 0:00:26]} 7. Nge2 {[%emt 0:04:57]} Nc6 {[%emt 0:00:26]} 8. d5 {[%emt 0:00:35]} Ne5 {[%emt 0:00:24]} 9. Ng3 {[%emt 0:00:43]} h5 {[%emt 0:03:32]} 10. Be2 {[%emt 0:02:59]} e6 {[%emt 0:13:22]} 11. O-O {[%emt 0:02:45]} exd5 {[%emt 0:00:50]} 12. cxd5 {[%emt 0:01:25]} Ne8 {[%emt 0:09:28]} 13. Qd2 {[%emt 0:04:49]} Rb8 {[%emt 0:04:02]} 14. a4 {[%emt 0:03:24]} a6 {[%emt 0:00:57]} 15. Rfc1 {[%emt 0:10:04]} Nc7 {[%emt 0:06:52]} 16. Rab1 {[%emt 0:10:03]} b5 {[%emt 0:01:36]} 17. b3 {[%emt 0:02:45]} Bd7 {[%emt 0:08:00]} 18. Bh6 {[%emt 0:10:19]} bxa4 {[%emt 0:25:50]} 19. bxa4 {[%emt 0:04:13]} Rb4 {[%emt 0:02:17]} 20. Bxg7 {[%emt 0:01:46]} Kxg7 {[%emt 0:00:01]} 21. h3 {[%emt 0:01:55]} f6 {[%emt 0:05:44]} 22. f4 {[%emt 0:05:19]} Nf7 {[%emt 0:02:01]} 23. Bd1 {[%emt 0:11:24]} h4 {[%emt 0:08:28]} 24. Nge2 {[%emt 0:01:51]} a5 {[%emt 0:00:15]} 25. Na2 {[%emt 0:04:35]} Qe8 {[%emt 0:04:37]} 26. Nxb4 {[%emt 0:05:12]} axb4 {[%emt 0:00:09]} 27. Qc2 {[%emt 0:08:04]} Qa8 {[%emt 0:05:13]} 28. Rxb4 {[%emt 0:04:26]} Nxd5 {[%emt 0:04:37]} 29. Rbb1 {[%emt 0:03:33]} Nb4 {[%emt 0:02:22]} 30. Qc4 {[%emt 0:03:01]} Bc8 {[%emt 0:01:17]} 31. Nc3 {[%emt 0:00:37]} Ba6 {[%emt 0:00:13]} 32. Nb5 {[%emt 0:01:08]} Nc6 {[%emt 0:02:33]} 33. Qd5 {[%emt 0:01:46]} Bb7 {[%emt 0:09:16]} 34. Nxd6 {[%emt 0:01:48]} Nxd6 {[%emt 0:02:01]} 35. Qxd6 {[%emt 0:00:05]} Nd8 {[%emt 0:05:12]} 36. Qxc5 {[%emt 0:05:18]} Bxe4 {[%emt 0:00:27]} 37. Rb2 {[%emt 0:01:03]} Rf7 {[%emt 0:02:35]} 38. Rb6 {[%emt 0:07:51]} Bxg2 {[%emt 0:00:52]} 39. Qe3 {[%emt 0:01:58]} Bh1 {[%emt 0:02:03]} 40. Qf2 {[%emt 0:01:04]} Re7 {[%emt 0:01:05]} 41. Bb3 {[%emt 0:01:50]} Qe4 {[%emt 0:04:01]} 42. Kh2 {[%emt 0:03:33]} Bf3 {[%emt 0:00:00]} 43. Rc4 {[%emt 0:02:50]} Qa8 {[%emt 0:01:09]} 44. Rc2 {[%emt 0:00:35]} Qe4 {[%emt 0:00:52]} 45. Rd2 {[%emt 0:00:18]} Qxf4+ {[%emt 0:00:22]} 46. Kg1 {[%emt 0:00:26]} Re3 {[%emt 0:02:25]} 47. Bd1 {[%emt 0:06:07]} Qg5+ {[%emt 0:01:06]} 48. Kf1 {[%emt 0:00:52]} Bxd1 {[%emt 0:02:15]} 49. Rd7+ {[%emt 0:01:41]} Kh6 {[%emt 0:00:35]} 50. Rxd1 {[%emt 0:00:46]} Ne6 {[%emt 0:01:37]} 0-1

[Event "13th Senioren-Cup Tegernsee 2025"]
[Site "Rottach-Egern"]
[Date "2025.03.29"]
[Round "1.5"]
[White "Loew, Gerald"]
[Black "Mitschka, Manfred"]
[Result "1-0"]
[Annotator "RC"]
[ECO "A10"]
[WhiteElo "2175"]
[BlackElo "1898"]
[PlyCount "79"]
[EventDate "2025.03.25"]
[EventType "swiss"]
[EventCountry "GER"]
[SourceTitle "playchess.com"]
[Source "ChessBase"]
[SourceQuality "1"]
[TimeControl "9000+30"]

1. c4 {[%emt 0:20:11]} b6 {[%emt 0:20:12]} 2. Nc3 {[%emt 0:00:19]} Bb7 {[%emt 0:00:29]} 3. e4 {[%emt 0:00:21]} e6 {[%emt 0:00:29]} 4. g3 {[%emt 0:01:07]} f5 {[%emt 0:01:59]} 5. d3 {[%emt 0:01:40]} Nf6 {[%emt 0:01:57]} 6. Bg2 {[%emt 0:00:25]} Bb4 {[%emt 0:00:42]} 7. Nge2 {[%emt 0:01:50]} fxe4 {[%emt 0:02:02]} 8. O-O {[%emt 0:00:40]} Bxc3 {[%emt 0:01:03]} 9. Nxc3 {[%emt 0:00:19]} O-O {[%emt 0:02:09]} 10. dxe4 {[%emt 0:00:36]} Nc6 {[%emt 0:09:39]} 11. e5 {[%emt 0:07:13]} Ne8 {[%emt 0:00:34]} 12. Bf4 {[%emt 0:03:02]} Rb8 {[%emt 0:02:18]} 13. Qg4 {[%emt 0:07:40]} Qe7 {[%emt 0:10:05]} 14. Rad1 {[%emt 0:02:03]} Na5 {[%emt 0:06:18]} 15. Rd4 {[%emt 0:23:54]} Bxg2 {[%emt 0:06:38]} 16. Kxg2 {[%emt 0:00:08]} Nc6 {[%emt 0:12:25]} 17. Re4 {[%emt 0:04:22]} Rf5 {[%emt 0:09:26]} 18. h4 {[%emt 0:04:20]} Qf7 {[%emt 0:07:07]} 19. Qe2 {[%emt 0:04:57]} g6 {[%emt 0:13:06]} 20. Rd1 {[%emt 0:04:44]} Qg7 {[%emt 0:04:09]} 21. g4 {[%emt 0:07:14]} Rf7 {[%emt 0:04:26]} 22. Qd2 {[%emt 0:04:08]} Qf8 {[%emt 0:04:35]} 23. a3 {[%emt 0:04:54]} a5 {[%emt 0:01:43]} 24. Nb5 {[%emt 0:04:12]} Rc8 {[%emt 0:01:42]} 25. Qe3 {[%emt 0:03:19]} Ng7 {[%emt 0:02:43]} 26. Bg5 {[%emt 0:05:28]} Ne8 {[%emt 0:04:13]} 27. Kg3 {[%emt 0:02:45]} Ng7 {[%emt 0:02:29]} 28. Rd3 {[%emt 0:03:08]} h5 {[%emt 0:03:16]} 29. f3 {[%emt 0:00:59]} Kh7 {[%emt 0:03:50]} 30. Kg2 {[%emt 0:08:45]} Kh8 {[%emt 0:07:09]} 31. Qd2 {[%emt 0:06:18]} hxg4 {[%emt 0:03:00]} 32. fxg4 {[%emt 0:00:09]} Nb8 {[%emt 0:05:02]} 33. Bf6 {[%emt 0:03:00]} Qg8 {[%emt 0:03:23]} 34. Rh3 {[%emt 0:07:28]} Kh7 {[%emt 0:01:55]} 35. Qg5 {[%emt 0:02:19]} Nh5 {[%emt 0:04:12]} 36. gxh5 {[%emt 0:01:20]} gxh5 {[%emt 0:00:28]} 37. Rg3 {[%emt 0:01:13]} Rxf6 {[%emt 0:01:34]} 38. Qxf6 {[%emt 0:01:08]} Rf8 {[%emt 0:00:31]} 39. Rxg8 {[%emt 0:00:47]} Rxf6 {[%emt 0:00:12]} 40. Rxb8 {[%emt 0:00:15]} 1-0

[Event "13th Senioren-Cup Tegernsee 2025"]
[Site "Rottach-Egern"]
[Date "2025.03.29"]
[Round "1.6"]
[White "Gutt, Oswald"]
[Black "Hess, Christian"]
[Result "0-1"]
[Annotator "RC"]
[ECO "D95"]
[WhiteElo "1895"]
[BlackElo "2168"]
[PlyCount "114"]
[EventDate "2025.03.25"]
[EventType "swiss"]
[EventCountry "GER"]
[SourceTitle "playchess.com"]
[Source "ChessBase"]
[SourceQuality "1"]
[TimeControl "9000+30"]

1. d4 {[%emt 0:20:05]} d5 {[%emt 0:20:34]} 2. Nf3 {[%emt 0:00:13]} Nf6 {[%emt 0:00:19]} 3. c4 {[%emt 0:00:14]} c6 {[%emt 0:00:27]} 4. e3 {[%emt 0:00:42]} g6 {[%emt 0:02:35]} 5. Nc3 {[%emt 0:00:14]} Bg7 {[%emt 0:00:06]} 6. Qb3 {[%emt 0:00:12]} O-O {[%emt 0:01:03]} 7. Bd2 {[%emt 0:00:09]} e6 {[%emt 0:01:00]} 8. Be2 {[%emt 0:00:54]} Nbd7 {[%emt 0:03:02]} 9. O-O {[%emt 0:00:32]} b6 {[%emt 0:01:39]} 10. cxd5 {[%emt 0:02:57]} exd5 {[%emt 0:01:37]} 11. Rfc1 {[%emt 0:03:21]} Bb7 {[%emt 0:04:43]} 12. Na4 {[%emt 0:05:21]} Ne4 {[%emt 0:05:37]} 13. Be1 {[%emt 0:01:24]} Rb8 {[%emt 0:19:44]} 14. Qa3 {[%emt 0:23:35]} a5 {[%emt 0:13:05]} 15. Rab1 {[%emt 0:01:48]} Re8 {[%emt 0:14:18]} 16. b4 {[%emt 0:07:15]} Bf8 {[%emt 0:01:50]} 17. Qb2 {[%emt 0:05:39]} axb4 {[%emt 0:03:40]} 18. Bxb4 {[%emt 0:02:06]} c5 {[%emt 0:01:25]} 19. Be1 {[%emt 0:06:08]} c4 {[%emt 0:21:19]} 20. Nc3 {[%emt 0:08:33]} Ra8 {[%emt 0:04:11]} 21. Nb5 {[%emt 0:21:34]} Bc6 {[%emt 0:03:03]} 22. Rc2 {[%emt 0:02:01]} Ra4 {[%emt 0:06:57]} 23. Ne5 {[%emt 0:00:54]} Nxe5 {[%emt 0:07:37]} 24. dxe5 {[%emt 0:00:08]} Bc5 {[%emt 0:02:47]} 25. Nd4 {[%emt 0:05:13]} Bd7 {[%emt 0:03:31]} 26. Nb5 {[%emt 0:06:16]} Qb8 {[%emt 0:02:17]} 27. Nd6 {[%emt 0:03:48]} Nxd6 {[%emt 0:02:18]} 28. exd6 {[%emt 0:00:08]} Bf5 {[%emt 0:00:42]} 29. Rd1 {[%emt 0:02:58]} Bxc2 {[%emt 0:03:26]} 30. Qxc2 {[%emt 0:00:08]} Qa8 {[%emt 0:01:05]} 31. Bf3 {[%emt 0:02:13]} Rxa2 {[%emt 0:02:53]} 32. Qc3 {[%emt 0:00:15]} Bxd6 {[%emt 0:03:46]} 33. Bxd5 {[%emt 0:30:02]} Qa4 {[%emt 0:01:52]} 34. Qf6 {[%emt 0:00:00]} Be5 {[%emt 0:02:03]} 35. Bxf7+ {[%emt 0:00:00]} Kf8 {[%emt 0:00:01]} 36. Bxe8+ {[%emt 0:00:00]} Bxf6 {[%emt 0:00:03]} 37. Bxa4 {[%emt 0:00:00]} Rxa4 {[%emt 0:00:03]} 38. Kf1 {[%emt 0:00:00]} b5 {[%emt 0:01:33]} 39. Rd7 {[%emt 0:00:00]} Ra1 {[%emt 0:00:31]} 40. Ke2 {[%emt 0:00:00]} c3 {[%emt 0:00:35]} 41. Rc7 {[%emt 0:00:00]} b4 {[%emt 0:00:14]} 42. Rc4 {[%emt 0:00:00]} Rb1 {[%emt 0:01:11]} 43. Rc6 {[%emt 0:00:00]} Kf7 {[%emt 0:00:41]} 44. f4 {[%emt 0:00:00]} Ke7 {[%emt 0:00:31]} 45. e4 {[%emt 0:00:00]} Bd4 {[%emt 0:00:27]} 46. Rc4 {[%emt 0:00:00]} Rb2+ {[%emt 0:00:07]} 47. Kd3 {[%emt 0:00:00]} Bg1 {[%emt 0:00:17]} 48. h3 {[%emt 0:00:00]} h5 {[%emt 0:00:49]} 49. g4 {[%emt 0:00:00]} Bh2 {[%emt 0:00:34]} 50. Bh4+ {[%emt 0:00:00]} Ke6 {[%emt 0:00:11]} 51. f5+ {[%emt 0:00:00]} gxf5 {[%emt 0:00:10]} 52. exf5+ {[%emt 0:00:00]} Kd5 {[%emt 0:00:39]} 53. Bg5 {[%emt 0:00:00]} hxg4 {[%emt 0:00:25]} 54. hxg4 {[%emt 0:00:00]} Be5 {[%emt 0:00:31]} 55. Be3 {[%emt 0:00:00]} Rd2+ {[%emt 0:00:59]} 56. Bxd2 {[%emt 0:00:00]} cxd2 {[%emt 0:00:07]} 57. Kxd2 {[%emt 0:00:00]} Kxc4 {[%emt 0:00:07]} 0-1

[Event "13th Senioren-Cup Tegernsee 2025"]
[Site "Rottach-Egern"]
[Date "2025.03.29"]
[Round "1.7"]
[White "Cordts, Ingo"]
[Black "Keeve, Martin"]
[Result "1-0"]
[Annotator "ChessBase"]
[ECO "B38"]
[WhiteElo "2151"]
[BlackElo "1893"]
[PlyCount "65"]
[EventDate "2025.03.25"]
[EventType "swiss"]
[EventCountry "GER"]
[SourceTitle "playchess.com"]
[Source "ChessBase"]
[SourceQuality "1"]
[TimeControl "9000+30"]

1. d4 {[%emt 0:20:03]} g6 {[%emt 0:20:11]} 2. c4 {[%emt 0:01:26]} Bg7 {[%emt 0:00:25]} 3. e4 {[%emt 0:00:39]} c5 {[%emt 0:00:14]} 4. Nf3 {[%emt 0:00:45]} cxd4 {[%emt 0:00:10]} 5. Nxd4 {[%emt 0:00:01]} Nc6 {[%emt 0:00:46]} 6. Be3 {[%emt 0:00:23]} d6 {[%emt 0:00:26]} 7. Nc3 {[%emt 0:00:25]} Nf6 {[%emt 0:00:09]} 8. Be2 {[%emt 0:00:16]} Bd7 {[%emt 0:00:24]} 9. Qd2 {[%emt 0:00:39]} a5 {[%emt 0:00:19]} 10. O-O {[%emt 0:00:30]} a4 {[%emt 0:00:30]} 11. Rfc1 {[%emt 0:00:30]} O-O {[%emt 0:00:30]} 12. f3 {[%emt 0:00:30]} Nxd4 {[%emt 0:00:30]} 13. Bxd4 {[%emt 0:10:22]} Bc6 {[%emt 0:33:32]} 14. b4 {[%emt 0:07:51]} axb3 {[%emt 0:06:39]} 15. axb3 {[%emt 0:00:14]} Qc7 {[%emt 0:02:39]} 16. b4 {[%emt 0:06:52]} Rfc8 {[%emt 0:04:56]} 17. g4 {[%emt 0:12:18]} Ne8 {[%emt 0:17:32]} 18. Rd1 {[%emt 0:08:32]} e6 {[%emt 0:04:05]} 19. Bxg7 {[%emt 0:09:29]} Kxg7 {[%emt 0:00:04]} 20. Rxa8 {[%emt 0:08:37]} Rxa8 {[%emt 0:00:10]} 21. c5 {[%emt 0:01:32]} b5 {[%emt 0:15:20]} 22. cxd6 {[%emt 0:04:16]} Qd7 {[%emt 0:05:15]} 23. Qd4+ {[%emt 0:03:54]} Kg8 {[%emt 0:00:38]} 24. Qb6 {[%emt 0:03:26]} Ra7 {[%emt 0:12:24]} 25. Bxb5 {[%emt 0:02:45]} Bxb5 {[%emt 0:00:47]} 26. Qxb5 {[%emt 0:00:39]} Nf6 {[%emt 0:08:30]} 27. e5 {[%emt 0:00:30]} Rb7 {[%emt 0:00:30]} 28. Qc4 {[%emt 0:04:54]} Ne8 {[%emt 0:05:56]} 29. b5 {[%emt 0:03:16]} f6 {[%emt 0:02:50]} 30. Ne4 {[%emt 0:04:55]} fxe5 {[%emt 0:05:06]} 31. Nc5 {[%emt 0:01:51]} Qd8 {[%emt 0:06:21]} 32. Nxb7 {[%emt 0:00:43]} Qb6+ {[%emt 0:00:10]} 33. Qc5 {[%emt 0:02:04]} 1-0

[Event "13th Senioren-Cup Tegernsee 2025"]
[Site "Rottach-Egern"]
[Date "2025.03.29"]
[Round "1.8"]
[White "Lindam, Ingo"]
[Black "Kopischke, Maik"]
[Result "1-0"]
[Annotator "RC"]
[ECO "B07"]
[WhiteElo "2151"]
[BlackElo "1876"]
[PlyCount "87"]
[EventDate "2025.03.25"]
[EventType "swiss"]
[EventCountry "GER"]
[SourceTitle "playchess.com"]
[Source "ChessBase"]
[SourceQuality "1"]
[TimeControl "9000+30"]

1. d4 {[%emt 0:20:04]} Nf6 {[%emt 0:20:05]} 2. Bg5 {[%emt 0:00:23]} d6 {[%emt 0:00:48]} 3. Nc3 {[%emt 0:03:13]} Nbd7 {[%emt 0:00:36]} 4. e4 {[%emt 0:01:50]} g6 {[%emt 0:01:21]} 5. Bc4 {[%emt 0:00:44]} h6 {[%emt 0:11:16]} 6. Bh4 {[%emt 0:01:06]} Nb6 {[%emt 0:07:49]} 7. Bb3 {[%emt 0:03:12]} c6 {[%emt 0:01:49]} 8. Qe2 {[%emt 0:02:13]} Qc7 {[%emt 0:01:56]} 9. O-O-O {[%emt 0:09:11]} Bg7 {[%emt 0:01:09]} 10. Nf3 {[%emt 0:26:17]} Bg4 {[%emt 0:00:34]} 11. e5 {[%emt 0:04:06]} Nfd5 {[%emt 0:04:25]} 12. Nxd5 {[%emt 0:45:44]} Nxd5 {[%emt 0:03:43]} 13. Rhe1 {[%emt 0:02:17]} e6 {[%emt 0:08:47]} 14. exd6 {[%emt 0:05:21]} Qxd6 {[%emt 0:00:54]} 15. Bg3 {[%emt 0:00:12]} Qd8 {[%emt 0:03:33]} 16. c4 {[%emt 0:02:48]} Nf6 {[%emt 0:04:46]} 17. h3 {[%emt 0:03:54]} Bxf3 {[%emt 0:00:41]} 18. Qxf3 {[%emt 0:00:01]} O-O {[%emt 0:00:27]} 19. Be5 {[%emt 0:01:56]} Nd7 {[%emt 0:02:31]} 20. Bd6 {[%emt 0:04:44]} Re8 {[%emt 0:03:39]} 21. Kb1 {[%emt 0:00:23]} Qa5 {[%emt 0:02:43]} 22. Re3 {[%emt 0:02:04]} Rad8 {[%emt 0:05:24]} 23. Qg3 {[%emt 0:01:29]} Rc8 {[%emt 0:00:54]} 24. Bc2 {[%emt 0:08:20]} Nf6 {[%emt 0:02:25]} 25. Qf3 {[%emt 0:02:56]} Rcd8 {[%emt 0:03:05]} 26. Ra3 {[%emt 0:00:43]} Qh5 {[%emt 0:08:20]} 27. g4 {[%emt 0:00:59]} Qh4 {[%emt 0:01:13]} 28. Be5 {[%emt 0:00:37]} a6 {[%emt 0:04:57]} 29. Qg2 {[%emt 0:04:37]} Nd7 {[%emt 0:01:03]} 30. Bc7 {[%emt 0:00:45]} Rc8 {[%emt 0:00:42]} 31. Bd6 {[%emt 0:00:56]} Bf8 {[%emt 0:04:43]} 32. Bg3 {[%emt 0:00:32]} Qd8 {[%emt 0:02:17]} 33. Rad3 {[%emt 0:00:48]} Nb6 {[%emt 0:02:38]} 34. b3 {[%emt 0:00:36]} a5 {[%emt 0:01:22]} 35. h4 {[%emt 0:00:51]} a4 {[%emt 0:00:51]} 36. h5 {[%emt 0:00:32]} g5 {[%emt 0:04:51]} 37. Rf3 {[%emt 0:00:25]} Bg7 {[%emt 0:01:23]} 38. Be5 {[%emt 0:00:33]} axb3 {[%emt 0:03:45]} 39. axb3 {[%emt 0:00:24]} Ra8 {[%emt 0:00:42]} 40. Qf1 {[%emt 0:00:32]} f6 {[%emt 0:08:04]} 41. Qd3 {[%emt 0:00:31]} Qe7 {[%emt 0:00:54]} 42. Qh7+ {[%emt 0:00:58]} Kf8 {[%emt 0:00:57]} 43. Bxf6 {[%emt 0:00:37]} Bxf6 {[%emt 0:01:27]} 44. Qh8+ {[%emt 0:00:41]} 1-0